fUST/lending_fUST_20250518
["ID","MTS","AMOUNT","RATE_DAILY","PERIOD"]
[361383127,1747536642770,-151.0,0.00014047,2]
[361383128,1747536642780,-197.470399,0.00014047,2]
[361383129,1747536642789,-237.785322,0.00014047,2]
[361383130,1747536642798,-303.94,0.00014109,2]
[361383131,1747536642807,-374.12,0.00014109,2]
[361383133,1747536642818,-151.0,0.00014109,2]
[361383135,1747536642829,-151.0,0.00014109,2]
[361383137,1747536642838,-251.7,0.00014109,2]
[361383139,1747536642848,-350.25,0.00014109,2]
[361383141,1747536642857,-450.0,0.00014109,2]
[361383142,1747536642866,-279.57,0.00014109,2]
[361383143,1747536642875,-450.0,0.00014109,2]
[361383144,1747536642884,-450.0,0.00014109,2]
[361383145,1747536642894,-450.0,0.00014109,2]
[361383146,1747536642904,-450.0,0.00014109,2]
[361383147,1747536642913,-313.98,0.00014109,2]
[361383148,1747536642922,-450.0,0.00014109,2]
[361383149,1747536642931,-258.52,0.00014109,2]
[361383150,1747536642940,-1129.84962,0.00014109,2]
[361383152,1747536642950,-450.0,0.00014109,2]
[361383153,1747536642959,-1129.84962,0.00014109,2]
[361383154,1747536642968,-450.0,0.00014109,2]
[361383155,1747536642977,-151.0,0.00014109,2]
[361383156,1747536642986,-263.88,0.00014109,2]
[361383157,1747536642995,-500.22,0.00014109,2]
[361383159,1747536643118,-486.66,0.00014109,2]
[361383160,1747536643128,-151.0,0.00014109,2]
[361383161,1747536643137,-450.0,0.00014109,2]
[361383162,1747536643147,-182.91,0.00014109,2]
[361383163,1747536643156,-450.0,0.00014109,2]
[361383165,1747536643166,-450.0,0.00014109,2]
[361383167,1747536643175,-450.0,0.00014109,2]
[361383169,1747536643184,-362.46,0.00014109,2]
[361383170,1747536643194,-450.0,0.00014109,2]
[361383171,1747536643203,-450.0,0.00014109,2]
[361383172,1747536643212,-450.0,0.00014109,2]
[361383173,1747536643221,-450.0,0.00014109,2]
[361383174,1747536643230,-450.0,0.00014109,2]
[361383175,1747536643239,-450.0,0.00014109,2]
[361383176,1747536643248,-151.0,0.00014109,2]
[361383177,1747536643258,-450.0,0.00014109,2]
[361383178,1747536643267,-450.0,0.00014109,2]
[361383179,1747536643277,-450.0,0.00014109,2]
[361383180,1747536643286,-165.390884,0.00014109,2]
[361383181,1747536643296,-165.390884,0.00014109,2]
[361383182,1747536643305,-443.64,0.00014109,2]
[361383183,1747536643315,-450.0,0.00014109,2]
[361383184,1747536643324,-360.27,0.00014109,2]
[361383185,1747536643333,-254.46,0.00014109,2]
[361383186,1747536643343,-450.0,0.00014109,2]
[361383187,1747536643351,-1059.65,0.00014109,2]
[361383188,1747536643360,-450.0,0.00014109,2]
[361383189,1747536643369,-450.0,0.00014109,2]
[361383190,1747536643379,-450.0,0.00014109,2]
[361383191,1747536643388,-583.89,0.00014109,2]
[361383192,1747536643397,-450.0,0.00014109,2]
[361383193,1747536643406,-476.06,0.00014109,2]
[361383194,1747536643417,-450.0,0.00014109,2]
[361383195,1747536643427,-450.0,0.00014109,2]
[361383196,1747536643438,-294.62,0.00014109,2]
[361383197,1747536643447,-404.61,0.00014109,2]
[361383198,1747536643458,-450.0,0.00014109,2]
[361383199,1747536643469,-450.0,0.00014109,2]
[361383200,1747536643480,-450.0,0.00014109,2]
[361383201,1747536643491,-450.0,0.00014109,2]
[361383202,1747536643502,-450.0,0.00014109,2]
[361383203,1747536643514,-562.88,0.00014109,2]
[361383204,1747536643525,-450.0,0.00014109,2]
[361383205,1747536643535,-1001.02,0.00014109,2]
[361383206,1747536643545,-450.0,0.00014109,2]
[361383207,1747536643556,-249.14,0.00014109,2]
[361383208,1747536643567,-450.0,0.00014109,2]
[361383209,1747536643577,-450.0,0.00014109,2]
[361383210,1747536643589,-450.0,0.00014109,2]
[361383211,1747536643599,-450.0,0.00014109,2]
[361383212,1747536643610,-367.76,0.00014109,2]
[361383213,1747536643620,-450.0,0.00014109,2]
[361383214,1747536643632,-450.0,0.00014109,2]
[361383215,1747536643641,-1188.8,0.00014109,2]
[361383216,1747536643650,-515.9,0.00014109,2]
[361383217,1747536643659,-450.0,0.00014109,2]
[361383218,1747536643669,-450.0,0.00014109,2]
[361383219,1747536643679,-450.0,0.00014109,2]
[361383220,1747536643689,-556.47,0.00014109,2]
[361383221,1747536643700,-450.0,0.00014109,2]
[361383222,1747536643710,-592.56,0.00014109,2]
[361383223,1747536643722,-1229.93,0.00014109,2]
[361383224,1747536643732,-450.0,0.00014109,2]
[361383225,1747536643741,-450.0,0.00014109,2]
[361383226,1747536643750,-450.0,0.00014109,2]
[361383227,1747536643760,-450.0,0.00014109,2]
[361383228,1747536643769,-450.0,0.00014109,2]
[361383229,1747536643778,-450.0,0.00014109,2]
[361383230,1747536643789,-450.0,0.00014109,2]
[361383231,1747536643800,-500.0,0.00014175,2]
[361383232,1747536643810,-1000.0,0.00014221,2]
[361383233,1747536643823,-151.0,0.00014246,2]
[361383234,1747536643832,-510.69,0.00014246,2]
[361383235,1747536643843,-450.0,0.00014246,2]
[361383236,1747536643854,-434.94,0.00014246,2]
[361383237,1747536643864,-166.58,0.00014246,2]
[361383238,1747536643874,-564.16,0.00014246,2]
[361383239,1747536643883,-184.23,0.00014246,2]
[361383240,1747536643892,-1129.84962,0.00014246,2]
[361383241,1747536643902,-450.0,0.00014246,2]
[361383242,1747536643912,-1129.84962,0.00014246,2]
[361383243,1747536643923,-450.0,0.00014246,2]
[361383244,1747536643932,-151.0,0.00014246,2]
[361383245,1747536643942,-151.0,0.00014246,2]
[361383246,1747536643952,-450.0,0.00014246,2]
[361383247,1747536643962,-450.0,0.00014246,2]
[361383248,1747536643973,-304.53,0.00014246,2]
[361383249,1747536643983,-450.0,0.00014246,2]
[361383250,1747536643995,-450.0,0.00014246,2]
[361383251,1747536644006,-450.0,0.00014246,2]
[361383252,1747536644015,-381.98,0.00014246,2]
[361383253,1747536644027,-450.0,0.00014246,2]
[361383254,1747536644038,-450.0,0.00014246,2]
[361383255,1747536644047,-450.0,0.00014246,2]
[361383256,1747536644056,-151.0,0.00014246,2]
[361383257,1747536644066,-450.0,0.00014246,2]
[361383258,1747536644076,-450.0,0.00014246,2]
[361383259,1747536644085,-450.0,0.00014246,2]
[361383260,1747536644095,-165.390884,0.00014246,2]
[361383261,1747536644104,-165.390885,0.00014246,2]
[361383262,1747536644113,-450.0,0.00014246,2]
[361383263,1747536644123,-450.0,0.00014246,2]
[361383264,1747536644132,-1059.65,0.00014246,2]
[361383265,1747536644141,-450.0,0.00014246,2]
[361383266,1747536644151,-450.0,0.00014246,2]
[361383267,1747536644160,-450.0,0.00014246,2]
[361383268,1747536644169,-277.22,0.00014246,2]
[361383269,1747536644178,-450.0,0.00014246,2]
[361383270,1747536644187,-450.0,0.00014246,2]
[361383271,1747536644197,-450.0,0.00014246,2]
[361383272,1747536644207,-349.52,0.00014246,2]
[361383273,1747536644217,-433.02,0.00014246,2]
[361383274,1747536644226,-450.0,0.00014246,2]
[361383275,1747536644236,-450.0,0.00014246,2]
[361383276,1747536644245,-157.72,0.00014246,2]
[361383277,1747536644255,-450.0,0.00014246,2]
[361383278,1747536644264,-1001.02,0.00014246,2]
[361383279,1747536644274,-450.0,0.00014246,2]
[361383280,1747536644283,-450.0,0.00014246,2]
[361383281,1747536644292,-450.0,0.00014246,2]
[361383282,1747536644302,-450.0,0.00014246,2]
[361383283,1747536644311,-450.0,0.00014246,2]
[361383284,1747536644321,-450.0,0.00014246,2]
[361383285,1747536644330,-1188.8,0.00014246,2]
[361383286,1747536644340,-450.0,0.00014246,2]
[361383287,1747536644349,-450.0,0.00014246,2]
[361383288,1747536644358,-450.0,0.00014246,2]
[361383289,1747536644368,-450.0,0.00014246,2]
[361383290,1747536644378,-592.56,0.00014246,2]
[361383291,1747536644387,-1229.93,0.00014246,2]
[361383292,1747536644397,-595.58,0.00014246,2]
[361383293,1747536644406,-329.25,0.00014246,2]
[361383294,1747536644415,-450.0,0.00014246,2]
[361383295,1747536644425,-450.0,0.00014246,2]
[361383296,1747536644434,-450.0,0.00014246,2]
[361383297,1747536644443,-450.0,0.00014246,2]
[361383298,1747536644453,-500.0,0.00014313,2]
[361383299,1747536644462,-500.85956961,0.00014313,2]
[361383300,1747536644471,-500.0,0.00014313,2]
[361383301,1747536644480,-2714.60296544,0.00014314,2]
[361383302,1747536644490,-151.0,0.00014314,2]
[361383303,1747536644499,-7248.1397996,0.00014383,3]
[361383304,1747536644508,-94779.29360735,0.00014383,2]
[361383305,1747536644518,-450.0,0.00014383,2]
[361383306,1747536644528,-466.92,0.00014383,2]
[361383307,1747536644538,-161.4,0.00014383,2]
[361383308,1747536644547,-283.12,0.00014383,2]
[361383309,1747536644557,-562.86,0.00014383,2]
[361383310,1747536644566,-480.72,0.00014383,2]
[361383311,1747536644575,-450.0,0.00014383,2]
[361383312,1747536644584,-450.0,0.00014383,2]
[361383313,1747536644593,-450.0,0.00014383,2]
[361383314,1747536644602,-517.38,0.00014383,2]
[361383315,1747536644611,-450.0,0.00014383,2]
[361383316,1747536644620,-450.0,0.00014383,2]
[361383317,1747536644629,-450.0,0.00014383,2]
[361383318,1747536644638,-450.0,0.00014383,2]
[361383319,1747536644648,-450.0,0.00014383,2]
[361383320,1747536644657,-450.0,0.00014383,2]
[361383321,1747536644666,-1059.65,0.00014383,2]
[361383322,1747536644675,-450.0,0.00014383,2]
[361383323,1747536644684,-450.0,0.00014383,2]
[361383324,1747536644693,-281.42,0.00014383,2]
[361383325,1747536644702,-450.0,0.00014383,2]
[361383326,1747536644711,-450.0,0.00014383,2]
[361383327,1747536644723,-450.0,0.00014383,2]
[361383328,1747536644732,-450.0,0.00014383,2]
[361383329,1747536644743,-278.68,0.00014383,2]
[361383330,1747536644753,-450.0,0.00014383,2]
[361383331,1747536644763,-1001.02,0.00014383,2]
[361383332,1747536644776,-450.0,0.00014383,2]
[361383333,1747536644786,-450.0,0.00014383,2]
[361383334,1747536644796,-450.0,0.00014383,2]
[361383335,1747536644809,-450.0,0.00014383,2]
[361383336,1747536644822,-450.0,0.00014383,2]
[361383337,1747536644832,-450.0,0.00014383,2]
[361383338,1747536644844,-1188.8,0.00014383,2]
[361383339,1747536644853,-450.0,0.00014383,2]
[361383340,1747536644863,-299.34,0.00014383,2]
[361383341,1747536644873,-450.0,0.00014383,2]
[361383342,1747536644883,-450.0,0.00014383,2]
[361383343,1747536644896,-592.56,0.00014383,2]
[361383344,1747536644908,-1229.93,0.00014383,2]
[361383345,1747536644919,-450.0,0.00014383,2]
[361383346,1747536644929,-450.0,0.00014383,2]
[361383347,1747536644940,-450.0,0.00014383,2]
[361383348,1747536644950,-450.0,0.00014383,2]
[361383349,1747536644960,-500.0,0.00014409,2]
[361383350,1747536644971,-151.0,0.00014409,2]
[361383351,1747536644981,-151.0,0.00014409,2]
[361383352,1747536644991,-151.0,0.0001442,2]
[361383353,1747536645000,-398.76,0.0001452,2]
[361383354,1747536645010,-1129.84962,0.0001452,2]
[361383355,1747536645021,-1129.84962,0.0001452,2]
[361383356,1747536645030,-450.0,0.0001452,2]
[361383357,1747536645040,-450.0,0.0001452,2]
[361383358,1747536645049,-450.0,0.0001452,2]
[361383359,1747536645059,-453.64,0.0001452,2]
[361383360,1747536645068,-247.9,0.0001452,2]
[361383361,1747536645078,-450.0,0.0001452,2]
[361383362,1747536645088,-450.0,0.0001452,2]
[361383363,1747536645098,-161.22,0.0001452,2]
[361383364,1747536645108,-416.39435008,0.0001452,2]
[361383365,1747536645119,-1059.65,0.0001452,2]
[361383366,1747536645130,-450.0,0.0001452,2]
[361383367,1747536645141,-450.0,0.0001452,2]
[361383368,1747536645150,-450.0,0.0001452,2]
[361383369,1747536645160,-450.0,0.0001452,2]
[361383370,1747536645170,-450.0,0.0001452,2]
[361383371,1747536645180,-450.0,0.0001452,2]
[361383372,1747536645189,-1001.02,0.0001452,2]
[361383373,1747536645199,-450.0,0.0001452,2]
[361383374,1747536645208,-450.0,0.0001452,2]
[361383375,1747536645218,-450.0,0.0001452,2]
[361383376,1747536645227,-354.68,0.0001452,2]
[361383377,1747536645237,-518.02,0.0001452,2]
[361383378,1747536645247,-450.0,0.0001452,2]
[361383379,1747536645256,-570.21,0.0001452,2]
[361383380,1747536645265,-1188.8,0.0001452,2]
[361383381,1747536645274,-573.38,0.0001452,2]
[361383382,1747536645283,-450.0,0.0001452,2]
[361383383,1747536645293,-450.0,0.0001452,2]
[361383384,1747536645302,-592.56,0.0001452,2]
[361383385,1747536645312,-1229.93,0.0001452,2]
[361383386,1747536645322,-195.48,0.0001452,2]
[361383387,1747536645331,-450.0,0.0001452,2]
[361383388,1747536645340,-450.0,0.0001452,2]
[361383389,1747536645351,-450.0,0.0001452,2]
[361383390,1747536645360,-500.0,0.00014546,2]
[361383391,1747536645369,-508.91583073,0.00014573,2]
[361383392,1747536645377,-1000.0,0.00014592,2]
[361383394,1747536645386,-420.0,0.00014615,2]
[361383396,1747536645395,-151.0,0.00014657,2]
[361383397,1747536645405,-450.0,0.00014657,2]
[361383398,1747536645414,-450.0,0.00014657,2]
[361383399,1747536645423,-315.45,0.00014657,2]
[361383400,1747536645432,-450.0,0.00014657,2]
[361383402,1747536645441,-450.0,0.00014657,2]
[361383404,1747536645450,-1059.65,0.00014657,2]
[361383407,1747536645460,-370.9,0.00014657,2]
[361383409,1747536645470,-482.66,0.00014657,2]
[361383412,1747536645479,-450.0,0.00014657,2]
[361383415,1747536645488,-450.0,0.00014657,2]
[361383417,1747536645500,-385.96,0.00014657,2]
[361383419,1747536645510,-450.0,0.00014657,2]
[361383421,1747536645519,-1001.02,0.00014657,2]
[361383423,1747536645528,-450.0,0.00014657,2]
[361383425,1747536645538,-463.72,0.00014657,2]
[361383427,1747536645547,-450.0,0.00014657,2]
[361383429,1747536645557,-450.0,0.00014657,2]
[361383431,1747536645566,-1188.8,0.00014657,2]
[361383433,1747536645575,-450.0,0.00014657,2]
[361383435,1747536645585,-450.0,0.00014657,2]
[361383437,1747536645594,-592.56,0.00014657,2]
[361383439,1747536645603,-1229.93,0.00014657,2]
[361383441,1747536645613,-450.0,0.00014657,2]
[361383443,1747536645622,-242.19,0.00014657,2]
[361383445,1747536645631,-450.0,0.00014657,2]
[361383447,1747536645642,-1000.0,0.00014723,2]
[361383450,1747536645651,-2714.60296544,0.00014728,2]
[361383452,1747536645660,-502.39421004,0.00014768,2]
[361383462,1747536645670,-151.0,0.00014794,2]
[361383464,1747536645785,-450.0,0.00014794,2]
[361383466,1747536645795,-450.0,0.00014794,2]
[361383468,1747536645804,-486.08074766,0.00014794,2]
[361383470,1747536645814,-450.0,0.00014794,2]
[361383472,1747536645828,-1059.65,0.00014794,2]
[361383474,1747536645838,-509.82,0.00014794,2]
[361383475,1747536645847,-450.0,0.00014794,2]
[361383476,1747536645857,-450.0,0.00014794,2]
[361383477,1747536645866,-1001.02,0.00014794,2]
[361383478,1747536645876,-450.0,0.00014794,2]
[361383479,1747536645885,-421.22,0.00014794,2]
[361383480,1747536645896,-450.0,0.00014794,2]
[361383481,1747536645906,-1188.8,0.00014794,2]
[361383482,1747536645917,-450.0,0.00014794,2]
[361383483,1747536645926,-450.0,0.00014794,2]
[361383484,1747536645935,-592.56,0.00014794,2]
[361383485,1747536645945,-1229.93,0.00014794,2]
[361383486,1747536645956,-450.0,0.00014794,2]
[361383487,1747536645967,-450.0,0.00014794,2]
[361383488,1747536645978,-152.03875598,0.00014867,2]
[361383489,1747536645987,-207.4,0.00014867,2]
[361383490,1747536645997,-151.0,0.00014931,2]
[361383492,1747536646007,-593.38,0.00014931,2]
[361383493,1747536646016,-450.0,0.00014931,2]
[361383494,1747536646026,-352.2,0.00014931,2]
[361383495,1747536646037,-1059.65,0.00014931,2]
[361383496,1747536646047,-450.0,0.00014931,2]
[361383497,1747536646056,-450.0,0.00014931,2]
[361383498,1747536646066,-1001.02,0.00014931,2]
[361383499,1747536646076,-450.0,0.00014931,2]
[361383500,1747536646086,-450.0,0.00014931,2]
[361383501,1747536646095,-1188.8,0.00014931,2]
[361383502,1747536646106,-450.0,0.00014931,2]
[361383503,1747536646115,-450.0,0.00014931,2]
[361383504,1747536646125,-592.56,0.00014931,2]
[361383505,1747536646135,-1229.93,0.00014931,2]
[361383506,1747536646145,-450.0,0.00014931,2]
[361383507,1747536646155,-299.24,0.00014931,2]
[361383508,1747536646165,-549.46,0.00014983,2]
[361383509,1747536646174,-404.0,0.00014983,2]
[361383510,1747536646184,-150.222,0.00014983,2]
[361383511,1747536646194,-150.163,0.00014983,2]
[361383512,1747536646203,-293.029,0.00015009,2]
[361383513,1747536646213,-1129.84962,0.00015061,2]
[361383514,1747536646223,-1129.849626,0.00015061,2]
[361383515,1747536646233,-482.58,0.00015068,2]
[361383516,1747536646243,-1059.65,0.00015068,2]
[361383517,1747536646253,-450.0,0.00015068,2]
[361383518,1747536646263,-450.0,0.00015068,2]
[361383519,1747536646273,-1001.02,0.00015068,2]
[361383520,1747536646282,-313.26,0.00015068,2]
[361383521,1747536646292,-450.0,0.00015068,2]
[361383522,1747536646302,-1188.8,0.00015068,2]
[361383523,1747536646312,-450.0,0.00015068,2]
[361383524,1747536646321,-450.0,0.00015068,2]
[361383525,1747536646330,-592.56,0.00015068,2]
[361383526,1747536646340,-1229.93,0.00015068,2]
[361383527,1747536646349,-450.0,0.00015068,2]
[361383528,1747536646359,-631.25085741,0.00015106,2]
[361383529,1747536646369,-1500.0,0.0001514,2]
[361383530,1747536646378,-2714.60296544,0.00015141,2]
[361383531,1747536646388,-295.000792,0.00015205,2]
[361383532,1747536646398,-1059.65,0.00015205,2]
[361383533,1747536646407,-450.0,0.00015205,2]
[361383534,1747536646417,-450.0,0.00015205,2]
[361383535,1747536646427,-1001.02,0.00015205,2]
[361383536,1747536646436,-450.0,0.00015205,2]
[361383537,1747536646445,-1188.8,0.00015205,2]
[361383538,1747536646455,-450.0,0.00015205,2]
[361383539,1747536646464,-450.0,0.00015205,2]
[361383540,1747536646473,-592.56,0.00015205,2]
[361383541,1747536646483,-1229.93,0.00015205,2]
[361383542,1747536646492,-450.0,0.00015205,2]
[361383543,1747536646502,-500.9124104,0.00015271,2]
[361383544,1747536646512,-381.95533329,0.00015325,2]
[361383545,1747536646521,-1059.65,0.00015342,2]
[361383546,1747536646531,-450.0,0.00015342,2]
[361383547,1747536646540,-450.0,0.00015342,2]
[361383548,1747536646550,-1001.02,0.00015342,2]
[361383549,1747536646559,-450.0,0.00015342,2]
[361383550,1747536646569,-1188.8,0.00015342,2]
[361383551,1747536646578,-492.7,0.00015342,2]
[361383552,1747536646587,-450.0,0.00015342,2]
[361383553,1747536646597,-592.56,0.00015342,2]
[361383554,1747536646606,-1229.93,0.00015342,2]
[361383555,1747536646616,-450.0,0.00015342,2]
[361383556,1747536646625,-1059.65,0.00015479,2]
[361383557,1747536646635,-450.0,0.00015479,2]
[361383558,1747536646644,-450.0,0.00015479,2]
[361383559,1747536646653,-1001.02,0.00015479,2]
[361383560,1747536646663,-450.0,0.00015479,2]
[361383561,1747536646681,-1188.8,0.00015479,2]
[361383562,1747536646693,-381.6,0.00015479,2]
[361383563,1747536646703,-210.32932555,0.00015479,2]
[361383564,1747536647275,821.06,0.00027397,120]
[361383565,1747536647288,-306.48807226,0.00013698,2]
[361383566,1747536647298,-38.05684751,0.00013698,2]
[361383567,1747536647309,-411.94315249,0.00013698,2]
[361383568,1747536647318,-450.0,0.00013698,2]
[361383569,1747536647327,-119.93711309,0.00013698,2]
[361383570,1747536647343,-381.73288691,0.00013698,2]
[361383571,1747536647353,-260.27664431,0.00013698,2]
[361383572,1747536647362,-43.87046878,0.00013698,2]
[361383573,1747536647373,-406.12953122,0.00013698,2]
[361383574,1747536647383,-450.0,0.00013835,2]
[361383575,1747536647391,-450.0,0.00013835,2]
[361383576,1747536647400,-450.0,0.00013835,2]
[361383577,1747536647410,-450.0,0.00013972,2]
[361383578,1747536647419,-447.97230555,0.00013972,2]
[361383579,1747536647427,-450.0,0.00014109,2]
[361383580,1747536647437,-450.0,0.00014246,2]
[361383581,1747536647446,-450.0,0.00014246,2]
[361383582,1747536647455,-345.24,0.00014383,2]
[361383583,1747536647464,-450.0,0.00014383,2]
[361383584,1747536647474,-450.0,0.0001452,2]
[361383585,1747536647483,-450.0,0.00014657,2]
[361383586,1747536647492,-450.0,0.00014794,2]
[361383587,1747536647501,-450.0,0.00014931,2]
[361383588,1747536647510,-450.0,0.00015068,2]
[361383589,1747536647519,-450.0,0.00015205,2]
[361383590,1747536647528,-450.0,0.00015342,2]
[361383591,1747536647538,-382.23067445,0.00015479,2]
[361383592,1747536647547,-1229.93,0.00015479,2]
[361383593,1747536647556,-450.0,0.00015479,2]
[361383594,1747536647565,-527.23953792,0.00015479,2]
[361383595,1747536647575,-1059.65,0.00015616,2]
[361383596,1747536647584,-450.0,0.00015616,2]
[361383597,1747536647593,-183.68,0.00015616,2]
[361383598,1747536647602,-1001.02,0.00015616,2]
[361383599,1747536647612,-450.0,0.00015616,2]
[361383600,1747536647621,-1188.8,0.00015616,2]
[361383601,1747536647630,-592.56,0.00015616,2]
[361383602,1747536647639,-1229.93,0.00015616,2]
[361383603,1747536647649,-450.0,0.00015616,2]
[361383604,1747536647658,-2000.0,0.00015688,2]
[361383605,1747536647667,-1059.65,0.00015753,2]
[361383606,1747536647676,-450.0,0.00015753,2]
[361383607,1747536647685,-1001.02,0.00015753,2]
[361383608,1747536647695,-450.0,0.00015753,2]
[361383609,1747536647705,-1188.8,0.00015753,2]
[361383610,1747536647715,-592.56,0.00015753,2]
[361383611,1747536647725,-1229.93,0.00015753,2]
[361383612,1747536647735,-450.0,0.00015753,2]
[361383613,1747536647743,-490.57127729,0.00015829,2]
[361383614,1747536647753,-151.0,0.0001589,2]
[361383615,1747536647762,-151.0,0.0001589,2]
[361383616,1747536647772,-151.0,0.0001589,2]
[361383617,1747536647783,-1059.65,0.0001589,2]
[361383618,1747536647796,-372.8,0.0001589,2]
[361383619,1747536647806,-1001.02,0.0001589,2]
[361383620,1747536647816,-450.0,0.0001589,2]
[361383621,1747536647830,-1188.8,0.0001589,2]
[361383622,1747536647841,-592.56,0.0001589,2]
[361383623,1747536647850,-1229.93,0.0001589,2]
[361383624,1747536647859,-450.0,0.0001589,2]
[361383625,1747536647870,-2053.4445294,0.00015946,2]
[361383626,1747536647879,-6941.92249901,0.00016,3]
[361383627,1747536647889,-314.4327999,0.00016,3]
[361383628,1747536647900,-12636.50182523,0.00016,3]
[361383629,1747536647912,-587.0,0.00016022,2]
[361383630,1747536647922,-1059.65,0.00016027,2]
[361383631,1747536647933,-1001.02,0.00016027,2]
[361383632,1747536647944,-450.0,0.00016027,2]
[361383633,1747536648076,-1188.8,0.00016027,2]
[361383634,1747536648087,-592.56,0.00016027,2]
[361383635,1747536648097,-1229.93,0.00016027,2]
[361383636,1747536648106,-450.0,0.00016027,2]
[361383637,1747536648116,-152.460534,0.0001611,3]
[361383638,1747536648129,-155.171107,0.0001611,3]
[361383639,1747536648138,-1059.65,0.00016164,2]
[361383640,1747536648148,-1001.02,0.00016164,2]
[361383641,1747536648158,-450.0,0.00016164,2]
[361383642,1747536648168,-1188.8,0.00016164,2]
[361383643,1747536648179,-592.56,0.00016164,2]
[361383644,1747536648188,-1229.93,0.00016164,2]
[361383645,1747536648198,-539.36325648,0.00016164,2]
[361383646,1747536648208,-1897.01250254,0.00016236,2]
[361383647,1747536648218,-1059.65,0.00016301,2]
[361383648,1747536648227,-1001.02,0.00016301,2]
[361383649,1747536648236,-450.0,0.00016301,2]
[361383650,1747536648247,-1188.8,0.00016301,2]
[361383651,1747536648256,-592.56,0.00016301,2]
[361383652,1747536648266,-32.99862071,0.00016301,2]
[361383653,1747536648279,-1196.93137929,0.00016301,2]
[361383654,1747536648289,-500.0,0.00016438,2]
[361383655,1747536648298,-500.0,0.00016438,2]
[361383656,1747536648308,-500.0,0.00016438,2]
[361383657,1747536648318,-500.0,0.00016438,2]
[361383658,1747536648328,-500.0,0.00016438,2]
[361383659,1747536648337,-500.0,0.00016438,2]
[361383660,1747536648347,-500.0,0.00016438,2]
[361383661,1747536648356,-500.0,0.00016438,2]
[361383662,1747536648366,-376.18071951,0.00016438,2]
[361383663,1747536648375,-500.0,0.00016438,2]
[361383664,1747536648385,-500.0,0.00016438,2]
[361383665,1747536648394,-500.0,0.00016438,2]
[361383666,1747536648403,-500.0,0.00016438,2]
[361383667,1747536648413,-500.0,0.00016438,2]
[361383668,1747536648422,-500.0,0.00016438,2]
[361383669,1747536648431,-500.0,0.00016438,2]
[361383670,1747536648441,-500.0,0.00016438,2]
[361383671,1747536648451,-589.51004583,0.00016438,2]
[361383672,1747536648460,-500.0,0.00016438,2]
[361383673,1747536648470,-500.0,0.00016438,2]
[361383674,1747536648480,-500.0,0.00016438,2]
[361383675,1747536648490,-500.0,0.00016438,2]
[361383676,1747536648499,-500.0,0.00016438,2]
[361383677,1747536648508,-500.0,0.00016438,2]
[361383678,1747536648518,-151.0,0.00016438,2]
[361383679,1747536648527,-1059.65,0.00016438,2]
[361383680,1747536648537,-1001.02,0.00016438,2]
[361383681,1747536648547,-429.57905793,0.00016438,2]
[361383682,1747536648557,-1188.8,0.00016438,2]